fUSD/lending_fUSD_20240327
["ID","MTS","AMOUNT","RATE_DAILY","PERIOD"]
[320728087,1711539062402,-500.0,0.00055068,120]
[320728088,1711539062412,-500.0,0.00055068,120]
[320728089,1711539062421,-417.88,0.00055068,120]
[320728090,1711539062431,-877.53,0.00055068,120]
[320728091,1711539062443,-500.0,0.00055068,120]
[320728092,1711539062452,-2082.72,0.00055068,120]
[320728093,1711539062462,-520.53,0.00055068,120]
[320728094,1711539062471,-500.0,0.00055068,120]
[320728095,1711539062480,-1016.45,0.00055068,120]
[320728096,1711539062489,-525.83,0.00055068,120]
[320728097,1711539062498,-151.0,0.00055068,120]
[320728098,1711539062508,-500.0,0.00055068,120]
[320728099,1711539062517,-500.0,0.00055068,120]
[320728100,1711539062527,-500.0,0.00055068,120]
[320728101,1711539062536,-1436.62,0.00055068,120]
[320728102,1711539062545,-2558.6,0.00055068,120]
[320728103,1711539062554,-2044.63,0.00055068,120]
[320728104,1711539062563,-500.0,0.00055068,120]
[320728105,1711539062573,-545.88,0.00055068,120]
[320728106,1711539062583,-783.0,0.00055068,120]
[320728107,1711539062592,-3085.25,0.00055068,120]
[320728108,1711539062602,-500.0,0.00055068,120]
[320728109,1711539062611,-500.0,0.00055068,120]
[320728110,1711539062620,-839.83,0.00055068,120]
[320728111,1711539062630,-500.0,0.00055068,120]
[320728112,1711539062640,-500.0,0.00055068,120]
[320728113,1711539062649,-735.26,0.00055068,120]
[320728114,1711539062658,-500.0,0.00055068,120]
[320728115,1711539062667,-500.0,0.00055068,7]
[320728116,1711539062678,-3173.89,0.00055068,120]
[320728117,1711539062688,-1365.01,0.00055068,120]
[320728118,1711539062697,-598.53222857,0.00055068,120]
[320728119,1711539062707,-1347.96,0.00055068,120]
[320728120,1711539062716,-500.0,0.00055068,120]
[320728121,1711539062726,-500.0,0.00055068,120]
[320728122,1711539062735,-500.0,0.00055068,120]
[320728123,1711539062744,-500.0,0.00055068,120]
[320728124,1711539062753,-5132.44,0.00055068,120]
[320728125,1711539062763,-558.52,0.00055068,120]
[320728126,1711539062772,-500.0,0.00055068,120]
[320728127,1711539062781,-500.0,0.00055068,120]
[320728128,1711539062791,-7133.78,0.00055068,120]
[320728129,1711539062801,-500.0,0.00055068,120]
[320728130,1711539062810,-579.76,0.00055068,120]
[320728131,1711539062821,-500.0,0.00055068,120]
[320728132,1711539062830,-1944.43,0.00055068,120]
[320728133,1711539062840,-500.0,0.00055068,120]
[320728134,1711539062850,-6097.44,0.00055068,120]
[320728135,1711539062860,-5109.09,0.00055068,120]
[320728136,1711539062870,-663.4,0.00055068,120]
[320728137,1711539062879,-545.62,0.00055068,120]
[320728138,1711539062889,-500.0,0.00055068,120]
[320728139,1711539062898,-500.0,0.00055068,120]
[320728140,1711539062908,-22670.34,0.00055068,120]
[320728141,1711539062917,-2453.89,0.00055068,120]
[320728142,1711539062928,-500.0,0.00055068,120]
[320728143,1711539062938,-2612.82,0.00055068,120]
[320728144,1711539062948,-7956.37,0.00055068,120]
[320728145,1711539062958,-2520.37,0.00055068,120]
[320728146,1711539062967,-1096.81,0.00055068,120]
[320728147,1711539062977,-500.0,0.00055068,120]
[320728148,1711539062987,-500.0,0.00055068,120]
[320728149,1711539062996,-628.48,0.00055068,120]
[320728150,1711539063006,-1032.54,0.00055068,120]
[320728151,1711539063015,-500.0,0.00055068,120]
[320728152,1711539063024,-500.0,0.00055068,120]
[320728153,1711539063033,-500.0,0.00055068,120]
[320728154,1711539063043,-2884.81,0.00055068,120]
[320728155,1711539063052,-3753.0,0.00055068,120]
[320728156,1711539063061,-500.0,0.00055068,120]
[320728157,1711539063070,-9397.34,0.00055068,120]
[320728158,1711539063080,-5025.57,0.00055068,120]
[320728159,1711539063089,-500.0,0.00055068,120]
[320728160,1711539063098,-43977.12,0.00055068,120]
[320728161,1711539063108,-500.0,0.00055068,120]
[320728162,1711539063117,-7954.08,0.00055068,120]
[320728163,1711539063131,-500.0,0.00055068,120]
[320728164,1711539063141,-500.0,0.00055068,120]
[320728165,1711539063151,-500.0,0.00055068,120]
[320728166,1711539063161,-500.0,0.00055068,120]
[320728167,1711539063170,-832.53,0.00055068,120]
[320728168,1711539063185,-5423.8,0.00055068,120]
[320728169,1711539063196,-5589.81,0.00055068,120]
[320728170,1711539063205,-3477.52,0.00055068,120]
[320728171,1711539063215,-514.75057784,0.00055068,120]
[320728172,1711539063225,-500.0,0.00055068,120]
[320728173,1711539063235,-3295.4,0.00055068,120]
[320728174,1711539063245,-500.0,0.00055068,120]
[320728175,1711539063260,-79143.13,0.00055068,120]
[320728176,1711539063270,-588.65,0.00055068,120]
[320728177,1711539063281,-4233.1,0.00055068,120]
[320728178,1711539063291,-1554.43,0.00055068,120]
[320728179,1711539063300,-500.0,0.00055068,120]
[320728180,1711539063310,-500.0,0.00055068,120]
[320728181,1711539063320,-21230.92,0.00055068,120]
[320728182,1711539063331,-1796.45,0.00055068,120]
[320728183,1711539063341,-1488.59,0.00055068,120]
[320728184,1711539063351,-1590.82,0.00055068,120]
[320728185,1711539063361,-500.0,0.00055068,120]
[320728186,1711539063373,-4270.02,0.00055068,120]
[320728187,1711539063384,-1416.51,0.00055068,120]
[320728188,1711539063395,-1436.29,0.00055068,120]
[320728189,1711539063406,-500.0,0.00055068,120]
[320728190,1711539063416,-1000.0,0.00055068,14]
[320728191,1711539063428,-4828.26,0.00055068,120]
[320728192,1711539063439,-2733.23,0.00055068,120]
[320728193,1711539063449,-2699.02,0.00055068,120]
[320728194,1711539063458,-4103.23,0.00055068,120]
[320728195,1711539063469,-794.6,0.00055068,120]
[320728196,1711539063479,-2649.26,0.00055068,120]
[320728197,1711539063489,-500.0,0.00055068,120]
[320728198,1711539063499,-3406.52,0.00055068,120]
[320728199,1711539063509,-1067.47,0.00055068,120]
[320728200,1711539063519,-500.0,0.00055068,120]
[320728201,1711539063529,-1008.05,0.00055068,120]
[320728202,1711539063539,-532.43,0.00055068,120]
[320728203,1711539063549,-500.0,0.00055068,120]
[320728204,1711539063559,-3326.63,0.00055068,120]
[320728205,1711539063569,-949.03,0.00055068,120]
[320728206,1711539063580,-13832.31,0.00055068,120]
[320728207,1711539063590,-500.0,0.00055068,120]
[320728208,1711539063600,-5725.46,0.00055068,120]
[320728209,1711539063611,-500.0,0.00055068,120]
[320728210,1711539063621,-1080.08,0.00055068,120]
[320728211,1711539063630,-638.55,0.00055068,120]
[320728212,1711539063640,-500.0,0.00055068,120]
[320728213,1711539063650,-532.1,0.00055068,120]
[320728214,1711539063660,-3178.59,0.00055068,120]
[320728215,1711539063670,-868.21,0.00055068,120]
[320728216,1711539063680,-273.46,0.00055068,120]
[320728217,1711539063690,-1914.32,0.00055068,120]
[320728218,1711539063699,-5718.22,0.00055068,120]
[320728219,1711539063710,-500.0,0.00055068,120]
[320728220,1711539063719,-1510.54,0.00055068,120]
[320728221,1711539063729,-6090.95,0.00055068,120]
[320728222,1711539063739,-500.0,0.00055068,120]
[320728223,1711539063749,-2368.29,0.00055068,120]
[320728224,1711539063759,-1975.68,0.00055068,120]
[320728225,1711539063928,-2626.24,0.00055068,120]
[320728226,1711539063939,-826.27,0.00055068,120]
[320728227,1711539063951,-5971.8,0.00055068,120]
[320728228,1711539063960,-6306.66,0.00055068,120]
[320728229,1711539063970,-3796.34,0.00055068,120]
[320728230,1711539063979,-3897.67,0.00055068,120]
[320728231,1711539063988,-500.0,0.00055068,120]
[320728232,1711539063998,-2196.71,0.00055068,120]
[320728233,1711539064007,-1053.73,0.00055068,120]
[320728234,1711539064016,-500.0,0.00055068,7]
[320728235,1711539064025,-2509.66,0.00055068,120]
[320728236,1711539064034,-500.0,0.00055068,120]
[320728237,1711539064043,-2090.88,0.00055068,120]
[320728238,1711539064053,-500.0,0.00055068,120]
[320728239,1711539064062,-3728.83,0.00055068,120]
[320728240,1711539064071,-14051.88,0.00055068,120]
[320728241,1711539064081,-5336.71,0.00055068,120]
[320728242,1711539064090,-500.0,0.00055068,120]
[320728243,1711539064099,-500.0,0.00055068,120]
[320728244,1711539064109,-6749.09,0.00055068,120]
[320728245,1711539064117,-6046.1,0.00055068,120]
[320728246,1711539064126,-1020.49,0.00055068,120]
[320728247,1711539064136,-1400.16,0.00055068,120]
[320728248,1711539064146,-500.0,0.00055068,120]
[320728249,1711539064155,-3525.02,0.00055068,120]
[320728250,1711539064168,-9670.8,0.00055068,120]
[320728251,1711539064178,-2244.9,0.00055068,120]
[320728252,1711539064192,-4278.93,0.00055068,120]
[320728253,1711539064201,-500.0,0.00055068,65]
[320728254,1711539064212,-500.0,0.00055068,120]
[320728255,1711539064223,-5002.55,0.00055068,120]
[320728256,1711539064233,-500.0,0.00055068,120]
[320728257,1711539064246,-500.0,0.00055068,120]
[320728258,1711539064257,-5599.22,0.00055068,120]
[320728259,1711539064267,-1319.68,0.00055068,120]
[320728260,1711539064278,-4145.52,0.00055068,120]
[320728261,1711539064288,-500.0,0.00055068,120]
[320728262,1711539064298,-1033.96,0.00055068,120]
[320728263,1711539064308,-8690.1,0.00055068,120]
[320728264,1711539064318,-759.99,0.00055068,120]
[320728265,1711539064329,-500.0,0.00055068,120]
[320728266,1711539064339,-3689.75,0.00055068,120]
[320728267,1711539064349,-938.28,0.00055068,120]
[320728268,1711539064359,-3289.32,0.00055068,120]
[320728269,1711539064369,-773.1,0.00055068,120]
[320728270,1711539064380,-8474.88,0.00055068,120]
[320728271,1711539064390,-670.41,0.00055068,120]
[320728272,1711539064400,-684.84,0.00055068,120]
[320728273,1711539064411,-500.0,0.00055068,120]
[320728274,1711539064421,-16950.66,0.00055068,120]
[320728275,1711539064432,-991.15,0.00055068,120]
[320728276,1711539064445,-500.0,0.00055068,120]
[320728277,1711539064456,-5480.38,0.00055068,120]
[320728278,1711539064466,-512.55038254,0.00055068,120]
[320728279,1711539064478,-500.0,0.00055068,120]
[320728280,1711539064488,-3421.26,0.00055068,120]
[320728281,1711539064499,-649.49,0.00055068,120]
[320728282,1711539064509,-500.0,0.00055068,120]
[320728283,1711539064520,-1159.66,0.00055068,120]
[320728284,1711539064530,-2172.19,0.00055068,120]
[320728285,1711539064541,-2895.84,0.00055068,120]
[320728286,1711539064551,-20784.38,0.00055068,120]
[320728287,1711539064561,-4740.83,0.00055068,120]
[320728288,1711539064572,-2732.75,0.00055068,120]
[320728289,1711539064582,-17160.48,0.00055068,120]
[320728290,1711539064591,-886.33,0.00055068,120]
[320728291,1711539064601,-672.63,0.00055068,120]
[320728292,1711539064611,-6247.3,0.00055068,120]
[320728293,1711539064622,-5091.09,0.00055068,21]
[320728294,1711539064632,-500.0,0.00055068,120]
[320728295,1711539064641,-8381.34,0.00055068,120]
[320728296,1711539064651,-584.47,0.00055068,120]
[320728297,1711539064661,-4086.57,0.00055068,120]
[320728298,1711539064670,-2273.07,0.00055068,120]
[320728299,1711539064681,-2370.47,0.00055068,120]
[320728300,1711539064692,-19292.32,0.00055068,120]
[320728301,1711539064703,-2960.24,0.00055068,120]
[320728302,1711539064713,-1173.99,0.00055068,120]
[320728303,1711539064723,-500.0,0.00055068,120]
[320728304,1711539064734,-500.0,0.00055068,85]
[320728305,1711539064745,-2202.57,0.00055068,120]
[320728306,1711539064755,-500.0,0.00055068,120]
[320728307,1711539064766,-151.0,0.00055068,120]
[320728308,1711539064776,-3278.85,0.00055068,120]
[320728309,1711539064786,-12410.62,0.00055068,120]
[320728310,1711539064797,-8798.58,0.00055068,120]
[320728311,1711539064807,-876.94,0.00055068,120]
[320728312,1711539064817,-500.0,0.00055068,120]
[320728313,1711539064828,-3583.19,0.00055068,120]
[320728314,1711539064838,-895.2,0.00055068,120]
[320728315,1711539064848,-500.0,0.00055068,120]
[320728316,1711539064858,-500.0,0.00055068,120]
[320728317,1711539064868,-500.0,0.00055068,120]
[320728318,1711539064878,-500.0,0.00055068,120]
[320728319,1711539064888,-1845.88,0.00055068,120]
[320728320,1711539064898,-937.27,0.00055068,120]
[320728321,1711539064908,-1083.78,0.00055068,120]
[320728322,1711539064917,-3201.11,0.00055068,120]
[320728323,1711539064927,-2638.24,0.00055068,120]
[320728324,1711539064939,-1388.52,0.00055068,120]
[320728325,1711539064949,-4892.27,0.00055068,120]
[320728326,1711539064959,-500.0,0.00055068,120]
[320728327,1711539064969,-2480.34,0.00055068,120]
[320728328,1711539064979,-1350.19,0.00055068,120]
[320728329,1711539064988,-3142.36,0.00055068,120]
[320728330,1711539064998,-2180.01,0.00055068,120]
[320728331,1711539065008,-500.0,0.00055068,120]
[320728332,1711539065018,-1470.53,0.00055068,120]
[320728333,1711539065028,-500.0,0.00055068,120]
[320728334,1711539065038,-289.28810693,0.00055068,120]
[320728335,1711539065048,-500.0,0.00055068,120]
[320728336,1711539065059,-500.0,0.00055068,120]
[320728337,1711539065069,-500.0,0.00055068,120]
[320728338,1711539065080,-500.0,0.00055068,120]
[320728339,1711539065090,-505.71,0.00055068,120]
[320728340,1711539065100,-1659.22,0.00055068,120]
[320728341,1711539065110,-151.0,0.00055068,30]
[320728342,1711539065121,-8083.93,0.00055068,120]
[320728343,1711539065131,-500.0,0.00055068,120]
[320728344,1711539065141,-2931.63,0.00055068,120]
[320728345,1711539065152,-2901.36,0.00055068,120]
[320728346,1711539065162,-541.86,0.00055068,120]
[320728347,1711539065172,-3516.57,0.00055068,120]
[320728348,1711539065183,-4166.77,0.00055068,120]
[320728349,1711539065194,-500.0,0.00055068,120]
[320728350,1711539065204,-10990.32,0.00055068,120]
[320728351,1711539065214,-1139.26,0.00055068,120]
[320728352,1711539065224,-151.0,0.00055068,120]
[320728353,1711539065234,-283.81675448,0.00055068,120]
[320728354,1711539065246,-686.73,0.00055068,120]
[320728355,1711539065260,-500.0,0.00055068,120]
[320728356,1711539065270,-1716.32,0.00055068,120]
[320728357,1711539065280,-239.764288,0.00055068,120]
[320728358,1711539065291,-2230.4,0.00055068,120]
[320728359,1711539065301,-1803.38,0.00055068,120]
[320728360,1711539065311,-2528.02,0.00055068,120]
[320728361,1711539065322,-752.78,0.00055068,120]
[320728362,1711539065333,-852.718661,0.00055068,120]
[320728363,1711539065343,-173.032719,0.00055098,102]
[320728364,1711539065353,-636.50981946,0.00055147,120]
[320728365,1711539065364,-163.57700478,0.00055154,120]
[320728366,1711539065374,-160.07183501,0.00055178,120]
[320728367,1711539065383,-173.032719,0.00055198,103]
[320728368,1711539065394,-500.0,0.00055292,90]
[320728369,1711539065403,-173.032719,0.00055298,104]
[320728370,1711539065413,-1315.790443,0.000553,98]
[320728371,1711539065424,-507.0,0.00055315,120]
[320728372,1711539065434,-2000.0,0.00055342,120]
[320728373,1711539065445,-3099.8901305,0.00055342,20]
[320728374,1711539065454,-895.23,0.00055342,120]
[320728375,1711539065464,-575.28,0.00055342,120]
[320728376,1711539065475,-500.0,0.00055342,120]
[320728377,1711539065486,-500.0,0.00055342,120]
[320728378,1711539065496,-500.0,0.00055342,120]
[320728379,1711539065506,-500.0,0.00055342,120]
[320728380,1711539065516,-500.0,0.00055342,120]
[320728381,1711539065527,-500.0,0.00055342,120]
[320728382,1711539065538,-500.0,0.00055342,120]
[320728383,1711539065547,-500.0,0.00055342,120]
[320728384,1711539065557,-500.0,0.00055342,120]
[320728385,1711539065568,-500.0,0.00055342,120]
[320728386,1711539065578,-563.96,0.00055342,120]
[320728387,1711539065589,-500.0,0.00055342,120]
[320728388,1711539065599,-500.0,0.00055342,120]
[320728389,1711539065611,-598.56,0.00055342,120]
[320728390,1711539065621,-500.0,0.00055342,120]
[320728391,1711539065632,-500.0,0.00055342,120]
[320728392,1711539065642,-500.0,0.00055342,120]
[320728393,1711539065651,-500.0,0.00055342,120]
[320728394,1711539065661,-151.0,0.00055342,120]
[320728395,1711539065670,-500.0,0.00055342,120]
[320728396,1711539065680,-500.0,0.00055342,120]
[320728397,1711539065690,-500.0,0.00055342,120]
[320728398,1711539065699,-500.0,0.00055342,120]
[320728399,1711539065708,-500.0,0.00055342,120]
[320728400,1711539065718,-500.0,0.00055342,120]
[320728401,1711539065728,-500.0,0.00055342,120]
[320728402,1711539065738,-500.0,0.00055342,120]
[320728403,1711539065747,-500.0,0.00055342,120]
[320728404,1711539065757,-500.0,0.00055342,120]
[320728405,1711539065766,-500.0,0.00055342,120]
[320728406,1711539065776,-500.0,0.00055342,120]
[320728407,1711539065785,-500.0,0.00055342,120]
[320728408,1711539065795,-500.0,0.00055342,120]
[320728409,1711539065806,-500.0,0.00055342,120]
[320728410,1711539065815,-500.0,0.00055342,120]
[320728411,1711539065825,-500.0,0.00055342,120]
[320728412,1711539065835,-500.0,0.00055342,120]
[320728413,1711539065845,-976.2,0.00055342,120]
[320728414,1711539065855,-500.0,0.00055342,120]
[320728415,1711539065866,-500.0,0.00055342,120]
[320728416,1711539065877,-500.0,0.00055342,120]
[320728417,1711539065888,-531.34,0.00055342,120]
[320728418,1711539065898,-500.0,0.00055342,120]
[320728419,1711539065908,-500.0,0.00055342,120]
[320728420,1711539065917,-500.0,0.00055342,120]
[320728421,1711539065927,-575.24,0.00055342,120]
[320728422,1711539065938,-500.0,0.00055342,120]
[320728423,1711539065948,-500.0,0.00055342,120]
[320728424,1711539065957,-500.0,0.00055342,120]
[320728425,1711539065967,-500.0,0.00055342,120]
[320728426,1711539065977,-500.0,0.00055342,120]
[320728427,1711539065987,-503.38,0.00055342,120]
[320728428,1711539065998,-500.0,0.00055342,120]
[320728429,1711539066008,-544.36,0.00055342,120]
[320728430,1711539066018,-656.62,0.00055342,120]
[320728431,1711539066028,-500.0,0.00055342,120]
[320728432,1711539066037,-1108.32,0.00055342,120]
[320728433,1711539066047,-786.05,0.00055342,120]
[320728434,1711539066057,-500.0,0.00055342,120]
[320728435,1711539066067,-500.0,0.00055342,120]
[320728436,1711539066080,-500.0,0.00055342,120]
[320728437,1711539066091,-500.0,0.00055342,120]
[320728438,1711539066100,-500.0,0.00055342,120]
[320728439,1711539066109,-500.0,0.00055342,120]
[320728440,1711539066119,-500.0,0.00055342,120]
[320728441,1711539066129,-500.0,0.00055342,120]
[320728442,1711539066138,-582.28,0.00055342,120]
[320728443,1711539066148,-500.0,0.00055342,120]
[320728444,1711539066157,-500.0,0.00055342,120]
[320728445,1711539066168,-500.0,0.00055342,120]
[320728446,1711539066178,-500.0,0.00055342,120]
[320728447,1711539066187,-500.0,0.00055342,120]
[320728448,1711539066197,-500.0,0.00055342,120]
[320728449,1711539066207,-888.0,0.00055342,120]
[320728450,1711539066216,-500.0,0.00055342,120]
[320728451,1711539066225,-500.0,0.00055342,120]
[320728452,1711539066236,-500.0,0.00055342,120]
[320728453,1711539066249,-500.0,0.00055342,120]
[320728454,1711539066258,-500.0,0.00055342,120]
[320728455,1711539066268,-500.0,0.00055342,120]
[320728456,1711539066278,-500.0,0.00055342,120]
[320728457,1711539066288,-514.80702639,0.00055342,120]
[320728458,1711539066297,-500.0,0.00055342,120]
[320728459,1711539066307,-500.0,0.00055342,120]
[320728460,1711539066316,-500.0,0.00055342,120]
[320728461,1711539066326,-406.27527937,0.00055342,120]
[320728462,1711539066341,-500.0,0.00055342,120]
[320728463,1711539066351,-500.0,0.00055342,120]
[320728464,1711539066361,-500.0,0.00055342,120]
[320728465,1711539066371,-500.0,0.00055342,120]
[320728466,1711539066381,-500.0,0.00055342,120]
[320728467,1711539066391,-500.0,0.00055342,120]
[320728468,1711539066400,-500.0,0.00055342,120]
[320728469,1711539066410,-500.0,0.00055342,120]
[320728470,1711539066556,-500.0,0.00055342,120]
[320728471,1711539066588,-500.0,0.00055342,120]
[320728472,1711539066599,-500.0,0.00055342,120]
[320728473,1711539066610,-500.0,0.00055342,120]
[320728474,1711539066620,-500.0,0.00055342,120]
[320728475,1711539066630,-500.0,0.00055342,120]
[320728476,1711539066641,-1051.68,0.00055342,120]
[320728477,1711539066651,-500.0,0.00055342,120]
[320728478,1711539066660,-151.0,0.00055342,7]
[320728479,1711539066671,-500.0,0.00055342,120]
[320728480,1711539066680,-500.0,0.00055342,120]
[320728481,1711539066693,-500.0,0.00055342,120]
[320728482,1711539066703,-650.65,0.00055342,120]
[320728483,1711539066713,-500.0,0.00055342,120]
[320728484,1711539066723,-151.0,0.00055342,120]
[320728485,1711539066733,-500.0,0.00055342,120]
[320728486,1711539066743,-500.0,0.00055342,120]
[320728487,1711539066753,-500.0,0.00055342,120]
[320728488,1711539066763,-151.0,0.00055342,120]
[320728489,1711539066772,-500.0,0.00055342,120]
[320728490,1711539066783,-666.49,0.00055342,120]
[320728491,1711539066793,-500.0,0.00055342,120]
[320728492,1711539066804,-512.61,0.00055342,120]
[320728493,1711539066813,-500.0,0.00055342,120]
[320728494,1711539066824,-500.0,0.00055342,120]
[320728495,1711539066833,-500.0,0.00055342,2]
[320728496,1711539066843,-500.0,0.00055342,120]
[320728497,1711539066853,-500.0,0.00055342,120]
[320728498,1711539066862,-500.0,0.00055342,120]
[320728499,1711539066872,-500.0,0.00055342,120]
[320728500,1711539066882,-500.0,0.00055342,120]
[320728501,1711539066892,-500.0,0.00055342,120]
[320728502,1711539066902,-610.66,0.00055342,120]
[320728503,1711539066911,-544.48,0.00055342,120]
[320728504,1711539066921,-500.0,0.00055342,120]
[320728505,1711539066931,-500.0,0.00055342,120]
[320728506,1711539066942,-1264.52,0.00055342,120]
[320728507,1711539066952,-500.0,0.00055342,120]
[320728508,1711539066961,-500.0,0.00055342,120]
[320728509,1711539066970,-564.14,0.00055342,120]
[320728510,1711539066979,-617.82,0.00055342,120]
[320728511,1711539066989,-510.33589028,0.00055342,120]
[320728512,1711539066998,-151.0,0.00055342,14]
[320728513,1711539067007,-832.09,0.00055342,120]
[320728514,1711539067016,-921.37,0.00055342,120]
[320728515,1711539067025,-695.47,0.00055342,120]
[320728516,1711539067035,-1458.74,0.00055342,120]
[320728517,1711539067045,-500.0,0.00055342,120]
[320728518,1711539067054,-151.0,0.00055342,120]
[320728519,1711539067064,-500.0,0.00055342,120]
[320728520,1711539067073,-1146.87,0.00055342,120]
[320728521,1711539067082,-157.416393,0.00055342,120]
[320728522,1711539067092,-500.0,0.00055342,120]
[320728523,1711539067102,-597.38,0.00055342,120]
[320728524,1711539067112,-2719.96,0.00055342,120]
[320728525,1711539067121,-500.0,0.00055342,120]
[320728526,1711539067131,-166.82827253,0.00055342,120]
[320728527,1711539067141,-1170.95,0.00055342,120]
[320728528,1711539067151,-500.0,0.00055342,120]
[320728529,1711539067161,-500.0,0.00055342,120]
[320728530,1711539067170,-500.0,0.00055342,120]
[320728531,1711539067179,-500.0,0.00055342,120]
[320728532,1711539067188,-1986.6,0.00055342,120]
[320728533,1711539067198,-500.0,0.00055342,120]
[320728534,1711539067208,-884.38,0.00055342,120]
[320728535,1711539067216,-1057.95,0.00055342,120]
[320728536,1711539067225,-151.0,0.00055342,30]
[320728537,1711539067234,-500.0,0.00055342,120]
[320728538,1711539067247,-616.91,0.00055342,120]
[320728539,1711539067257,-533.04,0.00055342,120]
[320728540,1711539067267,-537.22,0.00055342,120]
[320728541,1711539067277,-702.45,0.00055342,120]
[320728542,1711539067287,-5471.51,0.00055342,120]
[320728543,1711539067297,-587.11,0.00055342,120]
[320728544,1711539067306,-500.0,0.00055342,120]
[320728545,1711539067316,-500.0,0.00055342,120]
[320728546,1711539067326,-500.0,0.00055342,120]
[320728547,1711539067337,-500.0,0.00055342,120]
[320728548,1711539067347,-500.0,0.00055342,120]
[320728549,1711539067357,-2128.3,0.00055342,120]
[320728550,1711539067367,-500.0,0.00055342,120]
[320728551,1711539067377,-500.0,0.00055342,120]
[320728552,1711539067387,-500.0,0.00055342,120]
[320728553,1711539067396,-961.96,0.00055342,120]
[320728554,1711539067406,-792.02,0.00055342,120]
[320728555,1711539067416,-613.31,0.00055342,120]
[320728556,1711539067426,-1258.8,0.00055342,120]
[320728557,1711539067436,-500.0,0.00055342,120]
[320728558,1711539067448,-931.2,0.00055342,120]
[320728559,1711539067458,-663.5,0.00055342,120]
[320728560,1711539067467,-500.0,0.00055342,120]
[320728561,1711539067478,-1126.29,0.00055342,120]
[320728562,1711539067487,-905.93,0.00055342,120]
[320728563,1711539067497,-151.0,0.00055342,120]
[320728564,1711539067507,-596.37,0.00055342,120]
[320728565,1711539067517,-500.0,0.00055342,120]
[320728566,1711539067527,-500.0,0.00055342,120]
[320728567,1711539067536,-500.0,0.00055342,120]
[320728568,1711539067546,-1145.15,0.00055342,120]
[320728569,1711539067555,-1047.43,0.00055342,120]
[320728570,1711539067565,-500.0,0.00055342,120]
[320728571,1711539067574,-1079.19,0.00055342,120]
[320728572,1711539067583,-500.0,0.00055342,120]
[320728573,1711539067593,-151.0,0.00055342,120]
[320728574,1711539067603,-500.0,0.00055342,120]
[320728575,1711539067613,-500.0,0.00055342,120]
[320728576,1711539067622,-500.0,0.00055342,120]
[320728577,1711539067632,-151.0,0.00055342,120]
[320728578,1711539067642,-1050.1,0.00055342,120]
[320728579,1711539067652,-500.0,0.00055342,120]
[320728580,1711539067662,-500.0,0.00055342,120]
[320728581,1711539067671,-668.88,0.00055342,120]
[320728582,1711539067681,-500.0,0.00055342,120]
[320728583,1711539067691,-798.22,0.00055342,120]
[320728584,1711539067701,-500.0,0.00055342,120]
[320728585,1711539067710,-500.0,0.00055342,120]
[320728586,1711539067720,-865.88,0.00055342,120]